[Event "*** SCC Grand Prix: Titled Tuesday Blitz"]
[Site "Chess.com"]
[Date "2020.07.21"]
[Round "5"]
[White "Colchonero64"]
[Black "Alexander_Moskalenko"]
[Result "0-1"]
[WhiteElo "2923"]
[BlackElo "2793"]
[TimeControl "180+1"]
[EndTime "10:56:02 PDT"]
[Termination "Alexander_Moskalenko won by resignation"]

1. c4 {[%clk 0:03:00.9]} 1... e6 {[%clk 0:02:56.7]} 2. Nc3 {[%clk 0:03:00.1]}
2... d5 {[%clk 0:02:57.3]} 3. d4 {[%clk 0:02:59.4]} 3... c6 {[%clk 0:02:53.9]}
4. e3 {[%clk 0:02:58.2]} 4... Nf6 {[%clk 0:02:51.6]} 5. Nf3 {[%clk 0:02:57.9]}
5... Nbd7 {[%clk 0:02:50.9]} 6. Be2 {[%clk 0:02:51.7]} 6... Bd6 {[%clk
0:02:48.3]} 7. O-O {[%clk 0:02:49.2]} 7... O-O {[%clk 0:02:48.9]} 8. a4 {[%clk
0:02:48.1]} 8... a5 {[%clk 0:02:41.1]} 9. Qc2 {[%clk 0:02:45.7]} 9... b6 {[%clk
0:02:41.6]} 10. e4 {[%clk 0:02:43.3]} 10... dxe4 {[%clk 0:02:36.7]} 11. Nxe4
{[%clk 0:02:43.2]} 11... Nxe4 {[%clk 0:02:37.5]} 12. Qxe4 {[%clk 0:02:43.8]}
12... Bb7 {[%clk 0:02:38.3]} 13. Rd1 {[%clk 0:02:26.3]} 13... Qc7 {[%clk
0:02:38.2]} 14. Bd3 {[%clk 0:02:14.8]} 14... g6 {[%clk 0:02:14]} 15. Qh4 {[%clk
0:02:14.3]} 15... c5 {[%clk 0:02:10.5]} 16. Ng5 {[%clk 0:02:10.7]} 16... Nf6
{[%clk 0:02:08.6]} 17. Be3 {[%clk 0:02:03.7]} 17... cxd4 {[%clk 0:02:06.3]} 18.
Bxd4 {[%clk 0:02:02.3]} 18... Be5 {[%clk 0:02:07]} 19. Bf1 {[%clk 0:01:49.8]}
19... Bc6 {[%clk 0:01:44.6]} 20. b3 {[%clk 0:01:39.3]} 20... Kg7 {[%clk
0:01:38]} 21. Re1 {[%clk 0:01:06.8]} 21... Bxd4 {[%clk 0:01:37.4]} 22. Qxd4
{[%clk 0:01:06.6]} 22... Rad8 {[%clk 0:01:33.8]} 23. Qc3 {[%clk 0:01:06.1]}
23... Qe7 {[%clk 0:01:33.6]} 24. Rac1 {[%clk 0:00:59.5]} 24... h6 {[%clk
0:01:31.1]} 25. Nh3 {[%clk 0:00:59.6]} 25... g5 {[%clk 0:01:14.6]} 26. c5 {[%clk
0:00:59.4]} 26... bxc5 {[%clk 0:01:11.2]} 27. Qxc5 {[%clk 0:00:59.2]} 27... Qxc5
{[%clk 0:01:11.5]} 28. Rxc5 {[%clk 0:00:59.1]} 28... Bd5 {[%clk 0:01:12.4]} 29.
Rxa5 {[%clk 0:00:49.9]} 29... Bxb3 {[%clk 0:01:12.1]} 30. Bb5 {[%clk 0:00:48.4]}
30... Nd5 {[%clk 0:01:08.5]} 31. f3 {[%clk 0:00:39.2]} 31... Ra8 {[%clk
0:01:08.5]} 32. Rxa8 {[%clk 0:00:38.9]} 32... Rxa8 {[%clk 0:01:09.4]} 33. Ra1
{[%clk 0:00:24.1]} 33... Nc3 {[%clk 0:00:58.7]} 34. Ra3 {[%clk 0:00:23.9]} 34...
Bxa4 {[%clk 0:00:55.8]} 35. Bxa4 {[%clk 0:00:20.2]} 35... Nxa4 {[%clk
0:00:56.7]} 36. Nf2 {[%clk 0:00:20.1]} 36... Nb6 {[%clk 0:00:56]} 37. Rxa8
{[%clk 0:00:19.6]} 37... Nxa8 {[%clk 0:00:56.9]} 38. Ne4 {[%clk 0:00:19.9]}
38... f5 {[%clk 0:00:53]} 39. Nc5 {[%clk 0:00:19.4]} 39... Kf6 {[%clk
0:00:50.6]} 40. Kf2 {[%clk 0:00:19.5]} 40... h5 {[%clk 0:00:48.9]} 41. g3 {[%clk
0:00:17.9]} 41... Nb6 {[%clk 0:00:39.7]} 42. h4 {[%clk 0:00:18]} 42... g4 {[%clk
0:00:37.7]} 43. Nd3 {[%clk 0:00:16.5]} 43... Nd5 {[%clk 0:00:36.6]} 44. f4
{[%clk 0:00:16.7]} 44... Ke7 {[%clk 0:00:35.7]} 45. Ne5 {[%clk 0:00:16.4]} 45...
Nf6 {[%clk 0:00:36.4]} 46. Kg2 {[%clk 0:00:14.7]} 46... Kd6 {[%clk 0:00:37]} 47.
Ng6 {[%clk 0:00:14.6]} 47... Nd7 {[%clk 0:00:35.6]} 48. Kf2 {[%clk 0:00:12.4]}
48... Kc7 {[%clk 0:00:35.7]} 49. Ne7 {[%clk 0:00:11.1]} 49... Nf8 {[%clk
0:00:34.4]} 50. Ng8 {[%clk 0:00:10.2]} 50... Kd6 {[%clk 0:00:26.4]} 51. Nf6
{[%clk 0:00:07.6]} 51... Ke7 {[%clk 0:00:24.9]} 52. Nxh5 {[%clk 0:00:03.3]}
52... Kf7 {[%clk 0:00:25.2]} 53. Ke3 {[%clk 0:00:03.8]} 53... Kg6 {[%clk
0:00:25.6]} 54. Kd4 {[%clk 0:00:04.2]} 54... Nd7 {[%clk 0:00:26.3]} 55. Ng7
{[%clk 0:00:03.7]} 55... Kxg7 {[%clk 0:00:26.5]} 56. h5 {[%clk 0:00:03.5]} 56...
Kh6 {[%clk 0:00:25.7]} 0-1

[Event "*** SCC Grand Prix: Titled Tuesday Blitz"]
[Site "Chess.com"]
[Date "2020.07.21"]
[Round "5"]
[White "TigrVShlyape"]
[Black "ulises2013"]
[Result "1-0"]
[WhiteElo "2855"]
[BlackElo "2628"]
[TimeControl "180+1"]
[EndTime "10:56:04 PDT"]
[Termination "TigrVShlyape won by resignation"]

1. d4 {[%clk 0:03:00.9]} 1... g6 {[%clk 0:02:58.3]} 2. Nf3 {[%clk 0:02:46.3]}
2... Bg7 {[%clk 0:02:57.4]} 3. c3 {[%clk 0:02:45.4]} 3... c5 {[%clk 0:02:56.7]}
4. e4 {[%clk 0:02:32.7]} 4... cxd4 {[%clk 0:02:56.3]} 5. cxd4 {[%clk 0:02:31.8]}
5... d5 {[%clk 0:02:56.3]} 6. e5 {[%clk 0:02:30.2]} 6... Bg4 {[%clk 0:02:51.5]}
7. Nbd2 {[%clk 0:02:28.2]} 7... e6 {[%clk 0:02:44.9]} 8. h3 {[%clk 0:02:27.2]}
8... Bxf3 {[%clk 0:02:44.6]} 9. Nxf3 {[%clk 0:02:27.2]} 9... Ne7 {[%clk
0:02:45.2]} 10. Bd3 {[%clk 0:02:24.5]} 10... Nbc6 {[%clk 0:02:44.4]} 11. O-O
{[%clk 0:02:24.3]} 11... O-O {[%clk 0:02:44.1]} 12. Bd2 {[%clk 0:02:16]} 12...
Nf5 {[%clk 0:02:40.8]} 13. Bc3 {[%clk 0:02:15.3]} 13... f6 {[%clk 0:02:39.8]}
14. exf6 {[%clk 0:02:06.4]} 14... Qxf6 {[%clk 0:02:39]} 15. Bxf5 {[%clk
0:01:51.4]} 15... gxf5 {[%clk 0:02:26]} 16. Qe2 {[%clk 0:01:32.6]} 16... Rae8
{[%clk 0:02:25.4]} 17. b4 {[%clk 0:01:30.2]} 17... Ne7 {[%clk 0:02:13.4]} 18. b5
{[%clk 0:01:21.6]} 18... Ng6 {[%clk 0:02:13]} 19. Bb4 {[%clk 0:01:21.3]} 19...
Rf7 {[%clk 0:02:13]} 20. Bd6 {[%clk 0:01:20.4]} 20... Rd7 {[%clk 0:02:06]} 21.
Be5 {[%clk 0:01:10.4]} 21... Qf8 {[%clk 0:02:05.3]} 22. g3 {[%clk 0:01:04.8]}
22... Bxe5 {[%clk 0:01:52]} 23. Nxe5 {[%clk 0:01:03.5]} 23... Nxe5 {[%clk
0:01:51.9]} 24. Qxe5 {[%clk 0:01:03.4]} 24... Qg7 {[%clk 0:01:49.7]} 25. Qf4
{[%clk 0:00:58.8]} 25... h6 {[%clk 0:00:47.9]} 26. Rac1 {[%clk 0:00:55.6]} 26...
Qg5 {[%clk 0:00:47.4]} 27. Qe5 {[%clk 0:00:54.7]} 27... Qg7 {[%clk 0:00:47.3]}
28. Qf4 {[%clk 0:00:40.7]} 28... Qg5 {[%clk 0:00:46]} 29. Qf3 {[%clk 0:00:39.8]}
29... Kf7 {[%clk 0:00:41]} 30. Rfe1 {[%clk 0:00:34.1]} 30... Ree7 {[%clk
0:00:40.3]} 31. Qd3 {[%clk 0:00:17.7]} 31... Rc7 {[%clk 0:00:33.4]} 32. Rc5
{[%clk 0:00:17.7]} 32... Red7 {[%clk 0:00:17.3]} 33. a4 {[%clk 0:00:17]} 33...
Re7 {[%clk 0:00:12.7]} 34. a5 {[%clk 0:00:16.7]} 34... Rcd7 {[%clk 0:00:13]} 35.
Kg2 {[%clk 0:00:15.3]} 35... Qf6 {[%clk 0:00:11.7]} 36. Re5 {[%clk 0:00:15.2]}
36... Rc7 {[%clk 0:00:11.1]} 37. Qe3 {[%clk 0:00:14.9]} 37... Rcd7 {[%clk
0:00:10.3]} 38. Qc3 {[%clk 0:00:14.4]} 38... Qg5 {[%clk 0:00:07.9]} 39. Rc8
{[%clk 0:00:13.8]} 39... Re8 {[%clk 0:00:06.2]} 40. b6 {[%clk 0:00:12.5]} 40...
a6 {[%clk 0:00:05.9]} 41. Rc7 {[%clk 0:00:12.2]} 41... Ree7 {[%clk 0:00:06.3]}
42. Re1 {[%clk 0:00:08.4]} 42... Qg7 {[%clk 0:00:06.2]} 43. Rc1 {[%clk 0:00:07]}
43... Qf8 {[%clk 0:00:06.6]} 44. Qe3 {[%clk 0:00:06.7]} 44... Kg6 {[%clk
0:00:05.9]} 45. Rxd7 {[%clk 0:00:05.4]} 45... Rxd7 {[%clk 0:00:05.5]} 46. Qxe6+
{[%clk 0:00:05.9]} 1-0

[Event "*** SCC Grand Prix: Titled Tuesday Blitz"]
[Site "Chess.com"]
[Date "2020.07.21"]
[Round "5"]
[White "SantoBlue"]
[Black "LyonBeast"]
[Result "0-1"]
[WhiteElo "2729"]
[BlackElo "3012"]
[TimeControl "180+1"]
[EndTime "10:56:05 PDT"]
[Termination "LyonBeast won by resignation"]

1. Nf3 {[%clk 0:02:58.4]} 1... d5 {[%clk 0:02:58.6]} 2. c4 {[%clk 0:02:57.7]}
2... c6 {[%clk 0:02:55.5]} 3. b3 {[%clk 0:02:55.3]} 3... Nf6 {[%clk 0:02:54]} 4.
Bb2 {[%clk 0:02:55.4]} 4... g6 {[%clk 0:02:54]} 5. g3 {[%clk 0:02:54.3]} 5...
Bg7 {[%clk 0:02:53.7]} 6. Bg2 {[%clk 0:02:54.5]} 6... O-O {[%clk 0:02:53.7]} 7.
O-O {[%clk 0:02:54.2]} 7... a5 {[%clk 0:02:49.9]} 8. d3 {[%clk 0:02:48.9]} 8...
Na6 {[%clk 0:02:49.4]} 9. Nbd2 {[%clk 0:02:38.9]} 9... a4 {[%clk 0:02:45.1]} 10.
cxd5 {[%clk 0:02:33.8]} 10... cxd5 {[%clk 0:02:38.3]} 11. bxa4 {[%clk
0:02:25.5]} 11... Nc5 {[%clk 0:02:37.8]} 12. Bd4 {[%clk 0:02:24.9]} 12... Nxa4
{[%clk 0:02:36.9]} 13. Qb3 {[%clk 0:02:23.4]} 13... e6 {[%clk 0:02:21.2]} 14.
Rfc1 {[%clk 0:02:22.1]} 14... Ne8 {[%clk 0:02:11.1]} 15. Bxg7 {[%clk 0:02:19.9]}
15... Kxg7 {[%clk 0:02:10.1]} 16. e4 {[%clk 0:02:05.7]} 16... Nf6 {[%clk
0:01:46.1]} 17. e5 {[%clk 0:01:58.3]} 17... Nd7 {[%clk 0:01:46.1]} 18. d4 {[%clk
0:01:58.2]} 18... Qa5 {[%clk 0:01:31.2]} 19. h4 {[%clk 0:01:54.3]} 19... h6
{[%clk 0:01:26.2]} 20. h5 {[%clk 0:01:53.1]} 20... g5 {[%clk 0:01:22.5]} 21. Qe3
{[%clk 0:01:53]} 21... Qd8 {[%clk 0:01:22.3]} 22. Bf1 {[%clk 0:01:50]} 22...
Ndb6 {[%clk 0:01:16.3]} 23. Rab1 {[%clk 0:01:48.5]} 23... Bd7 {[%clk 0:01:14.7]}
24. Bd3 {[%clk 0:01:43.6]} 24... Bc6 {[%clk 0:01:15]} 25. Rb4 {[%clk 0:01:41.8]}
25... Qe7 {[%clk 0:01:09.2]} 26. a3 {[%clk 0:01:40.7]} 26... Nd7 {[%clk
0:01:08.3]} 27. Bc2 {[%clk 0:01:34]} 27... Nab6 {[%clk 0:01:07.8]} 28. Rcb1
{[%clk 0:01:28.9]} 28... Nc8 {[%clk 0:00:42.7]} 29. Nh2 {[%clk 0:01:24.5]} 29...
f5 {[%clk 0:00:38.3]} 30. exf6+ {[%clk 0:01:23.3]} 30... Nxf6 {[%clk 0:00:38.5]}
31. Qd3 {[%clk 0:01:17.8]} 31... Qf7 {[%clk 0:00:38.7]} 32. g4 {[%clk
0:00:57.9]} 32... Nd6 {[%clk 0:00:31.5]} 33. Qg3 {[%clk 0:00:50.9]} 33... Nfe4
{[%clk 0:00:27.8]} 34. Nxe4 {[%clk 0:00:46.4]} 34... Nxe4 {[%clk 0:00:28.7]} 35.
Qe5+ {[%clk 0:00:42.6]} 35... Kg8 {[%clk 0:00:28]} 36. f3 {[%clk 0:00:43.1]}
36... Nd2 {[%clk 0:00:25.1]} 37. R1b2 {[%clk 0:00:28.9]} 37... Nc4 {[%clk
0:00:23.4]} 38. Rxc4 {[%clk 0:00:16.6]} 38... dxc4 {[%clk 0:00:24.3]} 39. Bg6
{[%clk 0:00:17.3]} 39... Qf6 {[%clk 0:00:24.8]} 40. Qc7 {[%clk 0:00:15.9]} 40...
Qxd4+ {[%clk 0:00:24.8]} 41. Kh1 {[%clk 0:00:16.3]} 41... Qg7 {[%clk 0:00:23.7]}
42. Qb6 {[%clk 0:00:13.3]} 42... Rxa3 {[%clk 0:00:21.5]} 43. Re2 {[%clk
0:00:08.3]} 43... Raxf3 {[%clk 0:00:21.2]} 44. Nxf3 {[%clk 0:00:05.8]} 44...
Bxf3+ {[%clk 0:00:22.1]} 45. Kh2 {[%clk 0:00:05.9]} 45... Bxe2 {[%clk
0:00:22.7]} 46. Qxe6+ {[%clk 0:00:06.8]} 46... Kh8 {[%clk 0:00:23.3]} 47. Qxe2
{[%clk 0:00:07.7]} 47... c3 {[%clk 0:00:23.9]} 48. Bc2 {[%clk 0:00:07.4]} 48...
b5 {[%clk 0:00:23.7]} 49. Qxb5 {[%clk 0:00:06]} 49... Qd4 {[%clk 0:00:23.5]} 50.
Qa6 {[%clk 0:00:01.7]} 50... Qf2+ {[%clk 0:00:23]} 51. Kh1 {[%clk 0:00:02.4]}
51... Qf1+ {[%clk 0:00:23.6]} 0-1

[Event "*** SCC Grand Prix: Titled Tuesday Blitz"]
[Site "Chess.com"]
[Date "2020.07.21"]
[Round "5"]
[White "axvesik"]
[Black "DenLaz"]
[Result "0-1"]
[WhiteElo "2479"]
[BlackElo "2711"]
[TimeControl "180+1"]
[EndTime "10:56:05 PDT"]
[Termination "DenLaz won on time"]

1. e4 {[%clk 0:03:00.9]} 1... e5 {[%clk 0:02:57.6]} 2. Nf3 {[%clk 0:03:00.3]}
2... Nc6 {[%clk 0:02:56.9]} 3. Bc4 {[%clk 0:03:00.8]} 3... Bc5 {[%clk
0:02:55.8]} 4. O-O {[%clk 0:02:58.3]} 4... Nf6 {[%clk 0:02:56.2]} 5. d3 {[%clk
0:02:58.1]} 5... d6 {[%clk 0:02:56.6]} 6. c3 {[%clk 0:02:58.3]} 6... a6 {[%clk
0:02:57]} 7. Bb3 {[%clk 0:02:58.5]} 7... h6 {[%clk 0:02:57.4]} 8. Nbd2 {[%clk
0:02:58.4]} 8... O-O {[%clk 0:02:57.8]} 9. Re1 {[%clk 0:02:56.4]} 9... Be6
{[%clk 0:02:56.3]} 10. Nf1 {[%clk 0:02:55.3]} 10... Re8 {[%clk 0:02:54.4]} 11.
h3 {[%clk 0:02:53.7]} 11... Ba7 {[%clk 0:02:52.5]} 12. Bc2 {[%clk 0:02:52.5]}
12... d5 {[%clk 0:02:50.9]} 13. Qe2 {[%clk 0:02:52.4]} 13... Qd7 {[%clk
0:02:46.9]} 14. Ng3 {[%clk 0:02:52]} 14... Rad8 {[%clk 0:02:45.5]} 15. Kh2
{[%clk 0:02:40.9]} 15... d4 {[%clk 0:02:27.6]} 16. Nh4 {[%clk 0:02:34.4]} 16...
Ne7 {[%clk 0:02:23.9]} 17. Bd2 {[%clk 0:02:15.9]} 17... c5 {[%clk 0:02:18.2]}
18. Qf3 {[%clk 0:01:44.4]} 18... Nh7 {[%clk 0:02:16.3]} 19. Rad1 {[%clk
0:01:33.7]} 19... Ng5 {[%clk 0:02:11.8]} 20. Qh5 {[%clk 0:01:30.4]} 20... f6
{[%clk 0:02:08]} 21. Bb3 {[%clk 0:01:26]} 21... Bxb3 {[%clk 0:02:05.2]} 22. axb3
{[%clk 0:01:25.5]} 22... Qe6 {[%clk 0:02:02.1]} 23. Nhf5 {[%clk 0:01:22.3]}
23... Nxf5 {[%clk 0:01:52.6]} 24. Nxf5 {[%clk 0:01:19.5]} 24... Qf7 {[%clk
0:01:53]} 25. Qg4 {[%clk 0:01:19.1]} 25... Kh7 {[%clk 0:01:49.4]} 26. h4 {[%clk
0:01:13.5]} 26... h5 {[%clk 0:01:48.7]} 27. Qg3 {[%clk 0:01:02.8]} 27... Ne6
{[%clk 0:01:47.8]} 28. Qf3 {[%clk 0:01:00.2]} 28... g6 {[%clk 0:01:46.5]} 29.
Ng3 {[%clk 0:00:59.6]} 29... Bb8 {[%clk 0:01:37]} 30. c4 {[%clk 0:00:59.1]}
30... Kg7 {[%clk 0:01:35.3]} 31. b4 {[%clk 0:00:48.9]} 31... Rh8 {[%clk
0:01:29.3]} 32. bxc5 {[%clk 0:00:45.6]} 32... Nxc5 {[%clk 0:01:30.2]} 33. b4
{[%clk 0:00:45.9]} 33... Ne6 {[%clk 0:01:30.2]} 34. Kg1 {[%clk 0:00:44.9]} 34...
Bd6 {[%clk 0:01:24.3]} 35. Ra1 {[%clk 0:00:44.2]} 35... Ra8 {[%clk 0:01:22.9]}
36. Reb1 {[%clk 0:00:44]} 36... b5 {[%clk 0:01:19.1]} 37. c5 {[%clk 0:00:41.3]}
37... Be7 {[%clk 0:01:18.5]} 38. Ra3 {[%clk 0:00:37]} 38... Qe8 {[%clk
0:01:15.6]} 39. Rba1 {[%clk 0:00:36.6]} 39... Qc8 {[%clk 0:01:16]} 40. Qd1
{[%clk 0:00:34.2]} 40... Qc6 {[%clk 0:01:06]} 41. Qb3 {[%clk 0:00:33.7]} 41...
Nc7 {[%clk 0:01:05.9]} 42. Ra5 {[%clk 0:00:30.8]} 42... Qe8 {[%clk 0:01:04.9]}
43. Nf1 {[%clk 0:00:27.6]} 43... Qf7 {[%clk 0:01:05]} 44. Qc2 {[%clk 0:00:23.2]}
44... Qe6 {[%clk 0:01:01.7]} 45. Bc1 {[%clk 0:00:22.8]} 45... f5 {[%clk
0:00:59.1]} 46. exf5 {[%clk 0:00:19.9]} 46... gxf5 {[%clk 0:00:59.1]} 47. Bg5
{[%clk 0:00:20.1]} 47... Bxg5 {[%clk 0:00:58.2]} 48. hxg5 {[%clk 0:00:20.3]}
48... h4 {[%clk 0:00:58.2]} 49. Qe2 {[%clk 0:00:18.2]} 49... Nd5 {[%clk
0:00:54.1]} 50. Nh2 {[%clk 0:00:17.2]} 50... Nc3 {[%clk 0:00:43.5]} 51. Qf3
{[%clk 0:00:15.6]} 51... h3 {[%clk 0:00:38.9]} 52. gxh3 {[%clk 0:00:15]} 52...
e4 {[%clk 0:00:36.2]} 53. dxe4 {[%clk 0:00:15.1]} 53... fxe4 {[%clk 0:00:37.1]}
54. Qg4 {[%clk 0:00:15.4]} 54... Qxg4+ {[%clk 0:00:33]} 55. hxg4 {[%clk
0:00:15.6]} 55... d3 {[%clk 0:00:31.6]} 56. Rxa6 {[%clk 0:00:14.5]} 56... Rxa6
{[%clk 0:00:31]} 57. Rxa6 {[%clk 0:00:14.7]} 57... d2 {[%clk 0:00:31.5]} 58.
Ra7+ {[%clk 0:00:14.6]} 58... Kg6 {[%clk 0:00:31]} 59. Ra6+ {[%clk 0:00:12.5]}
59... Kxg5 {[%clk 0:00:30.9]} 60. f4+ {[%clk 0:00:10.3]} 60... Kxf4 {[%clk
0:00:31]} 61. Rf6+ {[%clk 0:00:09.1]} 61... Ke5 {[%clk 0:00:31]} 62. Rf5+ {[%clk
0:00:09]} 62... Kd4 {[%clk 0:00:31.6]} 0-1

[Event "*** SCC Grand Prix: Titled Tuesday Blitz"]
[Site "Chess.com"]
[Date "2020.07.21"]
[Round "5"]
[White "Quiet_Desperation"]
[Black "bazar-wokzal"]
[Result "1-0"]
[WhiteElo "2242"]
[BlackElo "2425"]
[TimeControl "180+1"]
[EndTime "10:56:06 PDT"]
[Termination "Quiet_Desperation won by resignation"]

1. d4 {[%clk 0:03:00.9]} 1... Nf6 {[%clk 0:02:52.3]} 2. Nf3 {[%clk 0:03:01.1]}
2... e6 {[%clk 0:02:51.6]} 3. c4 {[%clk 0:02:56.9]} 3... Nc6 {[%clk 0:02:51.1]}
4. a3 {[%clk 0:02:54.9]} 4... g6 {[%clk 0:02:50.6]} 5. Nc3 {[%clk 0:02:54.4]}
5... Bg7 {[%clk 0:02:50.5]} 6. e4 {[%clk 0:02:49.4]} 6... d5 {[%clk 0:02:50.4]}
7. e5 {[%clk 0:02:49.7]} 7... Ne4 {[%clk 0:02:50.2]} 8. cxd5 {[%clk 0:02:48]}
8... exd5 {[%clk 0:02:50]} 9. Bd3 {[%clk 0:02:46.1]} 9... Bf5 {[%clk 0:02:48.9]}
10. O-O {[%clk 0:02:46]} 10... O-O {[%clk 0:02:44.5]} 11. Re1 {[%clk 0:02:43.6]}
11... Nxc3 {[%clk 0:02:42.8]} 12. bxc3 {[%clk 0:02:43.6]} 12... Bxd3 {[%clk
0:02:43.4]} 13. Qxd3 {[%clk 0:02:43.2]} 13... Na5 {[%clk 0:02:40.7]} 14. Bg5
{[%clk 0:02:38.3]} 14... Qd7 {[%clk 0:02:40.3]} 15. Nd2 {[%clk 0:02:38.1]} 15...
b5 {[%clk 0:02:33.9]} 16. Reb1 {[%clk 0:02:31.3]} 16... a6 {[%clk 0:02:32.2]}
17. Nb3 {[%clk 0:02:20.5]} 17... Nc4 {[%clk 0:02:24.2]} 18. Nc5 {[%clk 0:02:20]}
18... Qg4 {[%clk 0:02:19.9]} 19. Qg3 {[%clk 0:02:13.8]} 19... Qxg3 {[%clk
0:02:11.8]} 20. hxg3 {[%clk 0:02:13.3]} 20... f6 {[%clk 0:01:42.6]} 21. exf6
{[%clk 0:02:10.4]} 21... Bxf6 {[%clk 0:01:42.5]} 22. Bf4 {[%clk 0:02:10.5]}
22... Rf7 {[%clk 0:01:41.5]} 23. Re1 {[%clk 0:02:04.7]} 23... Be7 {[%clk
0:01:31]} 24. Ne6 {[%clk 0:02:02.1]} 24... c6 {[%clk 0:01:29.2]} 25. a4 {[%clk
0:01:50.2]} 25... bxa4 {[%clk 0:01:25.5]} 26. Rxa4 {[%clk 0:01:44.5]} 26... a5
{[%clk 0:01:24.9]} 27. Rb1 {[%clk 0:01:38.6]} 27... Bd6 {[%clk 0:01:18.5]} 28.
Bh6 {[%clk 0:01:16.8]} 28... Re7 {[%clk 0:01:15.1]} 29. Ng5 {[%clk 0:01:12.9]}
29... Rb8 {[%clk 0:01:04]} 30. Rxb8+ {[%clk 0:01:11.1]} 30... Bxb8 {[%clk
0:01:02.3]} 31. Ra1 {[%clk 0:01:07.1]} 31... Bd6 {[%clk 0:00:49.8]} 32. Nf3
{[%clk 0:00:50.6]} 32... Kf7 {[%clk 0:00:47.7]} 33. Bf4 {[%clk 0:00:49.5]} 33...
Bxf4 {[%clk 0:00:44.2]} 34. gxf4 {[%clk 0:00:49.5]} 34... Ra7 {[%clk 0:00:20]}
35. Ne5+ {[%clk 0:00:44.9]} 35... Nxe5 {[%clk 0:00:19.9]} 36. fxe5 {[%clk
0:00:45.8]} 36... g5 {[%clk 0:00:20]} 37. Kf1 {[%clk 0:00:43.3]} 37... a4 {[%clk
0:00:19.9]} 38. Ra3 {[%clk 0:00:41.5]} 38... Ke6 {[%clk 0:00:19.4]} 39. g4
{[%clk 0:00:39.9]} 39... Kd7 {[%clk 0:00:17.8]} 40. Ke2 {[%clk 0:00:39.4]} 40...
Kc7 {[%clk 0:00:18.1]} 41. Ke3 {[%clk 0:00:39.5]} 41... Kb6 {[%clk 0:00:18.5]}
42. f4 {[%clk 0:00:39.7]} 42... gxf4+ {[%clk 0:00:18.1]} 43. Kxf4 {[%clk
0:00:39.8]} 43... Kb5 {[%clk 0:00:18.7]} 44. Kf5 {[%clk 0:00:37.2]} 44... Rf7+
{[%clk 0:00:17.3]} 45. Ke6 {[%clk 0:00:36.3]} 45... Rf4 {[%clk 0:00:15.8]} 46.
Kd6 {[%clk 0:00:35.3]} 46... Rxg4 {[%clk 0:00:14.3]} 47. e6 {[%clk 0:00:35.8]}
47... Re4 {[%clk 0:00:13]} 48. e7 {[%clk 0:00:32.5]} 48... h5 {[%clk 0:00:13.3]}
49. Kd7 {[%clk 0:00:32.8]} 49... h4 {[%clk 0:00:13.6]} 50. e8=Q {[%clk
0:00:33.1]} 50... Rxe8 {[%clk 0:00:13.7]} 51. Kxe8 {[%clk 0:00:34]} 51... h3
{[%clk 0:00:14.4]} 52. Kd7 {[%clk 0:00:33.8]} 52... h2 {[%clk 0:00:13.9]} 53.
Ra1 {[%clk 0:00:33.8]} 53... a3 {[%clk 0:00:14]} 54. Kd6 {[%clk 0:00:30.2]}
54... a2 {[%clk 0:00:13.8]} 55. Rh1 {[%clk 0:00:26.5]} 55... Kc4 {[%clk
0:00:13.6]} 56. Kxc6 {[%clk 0:00:25.9]} 56... Kxc3 {[%clk 0:00:07.1]} 57. Kxd5
{[%clk 0:00:25.8]} 57... Kb2 {[%clk 0:00:05]} 58. Rxh2+ {[%clk 0:00:25.7]} 1-0

[Event "*** SCC Grand Prix: Titled Tuesday Blitz"]
[Site "Chess.com"]
[Date "2020.07.21"]
[Round "5"]
[White "viktorskliarov"]
[Black "Omk124"]
[Result "1-0"]
[WhiteElo "2586"]
[BlackElo "2345"]
[TimeControl "180+1"]
[EndTime "10:56:09 PDT"]
[Termination "viktorskliarov won by checkmate"]

1. e4 {[%clk 0:03:00.9]} 1... g6 {[%clk 0:02:59.9]} 2. d4 {[%clk 0:02:59]} 2...
Bg7 {[%clk 0:03:00.4]} 3. Nc3 {[%clk 0:02:58.7]} 3... c6 {[%clk 0:03:00.5]} 4.
Bc4 {[%clk 0:02:57.9]} 4... d6 {[%clk 0:02:55.6]} 5. Qf3 {[%clk 0:02:56.7]} 5...
Nf6 {[%clk 0:02:55.1]} 6. e5 {[%clk 0:02:54.3]} 6... dxe5 {[%clk 0:02:24.8]} 7.
dxe5 {[%clk 0:02:52.7]} 7... Nd5 {[%clk 0:02:03.9]} 8. Nxd5 {[%clk 0:02:49.1]}
8... cxd5 {[%clk 0:02:04.8]} 9. Bxd5 {[%clk 0:02:49]} 9... O-O {[%clk
0:02:04.9]} 10. Bxb7 {[%clk 0:02:42.2]} 10... Bxb7 {[%clk 0:02:02.7]} 11. Qxb7
{[%clk 0:02:41.5]} 11... Nd7 {[%clk 0:02:01.5]} 12. Nf3 {[%clk 0:02:28.5]} 12...
Nxe5 {[%clk 0:01:58.3]} 13. Nxe5 {[%clk 0:02:24.5]} 13... Bxe5 {[%clk
0:01:59.2]} 14. O-O {[%clk 0:02:23.4]} 14... Qd6 {[%clk 0:01:56.4]} 15. g3
{[%clk 0:02:07.6]} 15... Rfc8 {[%clk 0:01:40.5]} 16. c3 {[%clk 0:02:03.8]} 16...
a5 {[%clk 0:01:35]} 17. Qe4 {[%clk 0:01:39]} 17... Rab8 {[%clk 0:01:33]} 18. f4
{[%clk 0:01:36.1]} 18... Bf6 {[%clk 0:01:31.3]} 19. f5 {[%clk 0:01:35.9]} 19...
Qb6+ {[%clk 0:01:06.2]} 20. Rf2 {[%clk 0:01:31]} 20... Qc6 {[%clk 0:00:19.1]}
21. Qxc6 {[%clk 0:01:25.6]} 21... Rxc6 {[%clk 0:00:20]} 22. Bf4 {[%clk
0:01:25.4]} 22... Rb5 {[%clk 0:00:20]} 23. fxg6 {[%clk 0:01:22.9]} 23... hxg6
{[%clk 0:00:20.9]} 24. Rd1 {[%clk 0:01:19.9]} 24... Rcb6 {[%clk 0:00:20.9]} 25.
Bc1 {[%clk 0:01:17.8]} 25... a4 {[%clk 0:00:20.5]} 26. a3 {[%clk 0:01:07.4]}
26... Re6 {[%clk 0:00:18.3]} 27. Kg2 {[%clk 0:01:03.4]} 27... Rbe5 {[%clk
0:00:17.8]} 28. Rd8+ {[%clk 0:00:55.9]} 28... Kg7 {[%clk 0:00:17.1]} 29. Ra8
{[%clk 0:00:56.3]} 29... Re1 {[%clk 0:00:16.4]} 30. Bd2 {[%clk 0:00:47]} 30...
Rb1 {[%clk 0:00:14]} 31. Rb8 {[%clk 0:00:46.9]} 31... Be5 {[%clk 0:00:10.9]} 32.
Rb5 {[%clk 0:00:41.8]} 32... Bf6 {[%clk 0:00:09.6]} 33. Rb4 {[%clk 0:00:32.1]}
33... Rd6 {[%clk 0:00:09.5]} 34. Be3 {[%clk 0:00:24.8]} 34... Rd3 {[%clk
0:00:09.3]} 35. Bd4 {[%clk 0:00:23]} 35... e5 {[%clk 0:00:08]} 36. Bc5 {[%clk
0:00:19.5]} 36... Rd5 {[%clk 0:00:07.7]} 37. Bf8+ {[%clk 0:00:19.1]} 37... Kg8
{[%clk 0:00:07.7]} 38. Rxf6 {[%clk 0:00:19]} 38... Kxf8 {[%clk 0:00:08.4]} 39.
Rb7 {[%clk 0:00:17.8]} 39... Rd2+ {[%clk 0:00:08.1]} 40. Kh3 {[%clk 0:00:17]}
40... Rbxb2 {[%clk 0:00:09]} 41. Rfxf7+ {[%clk 0:00:16.5]} 41... Ke8 {[%clk
0:00:09.4]} 42. Rfe7+ {[%clk 0:00:16.6]} 42... Kd8 {[%clk 0:00:09.9]} 43. Rxb2
{[%clk 0:00:15.8]} 43... Rxb2 {[%clk 0:00:09.8]} 44. Rxe5 {[%clk 0:00:16.2]}
44... Rb3 {[%clk 0:00:10.1]} 45. Re6 {[%clk 0:00:15.7]} 45... Rxa3 {[%clk
0:00:10.4]} 46. Rxg6 {[%clk 0:00:15.8]} 46... Rxc3 {[%clk 0:00:11]} 47. Ra6
{[%clk 0:00:16.3]} 47... a3 {[%clk 0:00:11.6]} 48. Kg4 {[%clk 0:00:16.6]} 48...
Ke7 {[%clk 0:00:12.3]} 49. h4 {[%clk 0:00:16.6]} 49... Kf7 {[%clk 0:00:13]} 50.
h5 {[%clk 0:00:16.8]} 50... Kg7 {[%clk 0:00:13.3]} 51. Ra7+ {[%clk 0:00:16.3]}
51... Kh6 {[%clk 0:00:13.3]} 52. Ra6+ {[%clk 0:00:16.4]} 52... Kg7 {[%clk
0:00:13.7]} 53. Kh4 {[%clk 0:00:16.4]} 53... Rb3 {[%clk 0:00:10.7]} 54. g4
{[%clk 0:00:16.5]} 54... Rc3 {[%clk 0:00:11.2]} 55. Ra7+ {[%clk 0:00:14]} 55...
Kh6 {[%clk 0:00:11.4]} 56. g5# {[%clk 0:00:13.3]} 1-0